fUSD/lending_fUSD_20250221
["ID","MTS","AMOUNT","RATE_DAILY","PERIOD"]
[353959276,1740167467511,-500.0,0.00011369,2]
[353959277,1740167467520,-500.0,0.00011369,2]
[353959278,1740167467531,-500.0,0.00011369,2]
[353959279,1740167467540,-555.11,0.00011369,2]
[353959280,1740167467550,-730.45,0.00011369,2]
[353959281,1740167467560,-700.04,0.00011369,2]
[353959282,1740167467570,-500.0,0.00011369,2]
[353959283,1740167467580,-639.37,0.00011369,2]
[353959284,1740167467590,-644.32,0.00011369,2]
[353959285,1740167467599,-500.0,0.00011369,2]
[353959286,1740167467609,-500.0,0.00011369,2]
[353959287,1740167467619,-500.0,0.00011369,2]
[353959288,1740167467629,-831.04,0.00011369,2]
[353959289,1740167467639,-500.0,0.00011369,2]
[353959290,1740167467648,-500.0,0.00011369,2]
[353959291,1740167467658,-280.49187289,0.00011369,2]
[353959292,1740167467667,-515.07,0.00011369,2]
[353959293,1740167467677,-625.71,0.00011369,2]
[353959294,1740167467686,-500.0,0.00011369,2]
[353959295,1740167467698,-500.0,0.00011369,2]
[353959296,1740167467713,-848.84,0.00011369,2]
[353959297,1740167467723,-822.17,0.00011369,2]
[353959298,1740167467733,-745.81,0.00011369,2]
[353959299,1740167467743,-500.0,0.00011369,2]
[353959300,1740167467753,-649.90656829,0.00011369,2]
[353959301,1740167467763,-500.0,0.00011369,2]
[353959302,1740167467772,-919.32,0.00011369,2]
[353959303,1740167467783,-500.0,0.00011369,2]
[353959304,1740167467793,-500.0,0.00011369,2]
[353959305,1740167467803,-500.0,0.00011369,2]
[353959306,1740167467813,-687.5,0.00011369,2]
[353959307,1740167467822,-500.0,0.00011369,2]
[353959308,1740167467832,-500.0,0.00011369,2]
[353959309,1740167467841,-500.0,0.00011369,2]
[353959310,1740167467851,-526.13323524,0.00011369,2]
[353959311,1740167467860,-500.0,0.00011369,2]
[353959312,1740167467869,-500.0,0.00011369,2]
[353959313,1740167467878,-740.68,0.00011369,2]
[353959314,1740167467888,-500.0,0.00011369,2]
[353959315,1740167467897,-500.0,0.00011369,2]
[353959316,1740167467907,-905.88,0.00011369,2]
[353959317,1740167467917,-500.0,0.00011369,2]
[353959318,1740167467927,-500.0,0.00011369,2]
[353959319,1740167467937,-1098.49,0.00011369,2]
[353959320,1740167467951,-500.0,0.00011369,2]
[353959321,1740167467960,-500.0,0.00011369,2]
[353959322,1740167467970,-500.0,0.00011369,2]
[353959323,1740167467980,-500.0,0.00011369,2]
[353959324,1740167467989,-857.44,0.00011369,2]
[353959325,1740167467998,-526.69568575,0.00011369,2]
[353959326,1740167468008,-809.24,0.00011369,2]
[353959327,1740167468017,-500.0,0.00011369,2]
[353959328,1740167468027,-1331.51,0.00011369,2]
[353959329,1740167468037,-754.01,0.00011369,2]
[353959330,1740167468047,-542.87,0.00011369,2]
[353959331,1740167468056,-500.0,0.00011369,2]
[353959332,1740167468066,-500.0,0.00011369,2]
[353959333,1740167468075,-1013.68,0.00011369,2]
[353959334,1740167468085,-953.54,0.00011369,2]
[353959335,1740167468095,-750.4,0.00011369,2]
[353959336,1740167468105,-687.42,0.00011369,2]
[353959337,1740167468115,-500.0,0.00011369,2]
[353959338,1740167468124,-738.46,0.00011369,2]
[353959339,1740167468134,-1329.27,0.00011369,2]
[353959340,1740167468144,-1176.97,0.00011369,2]
[353959341,1740167468153,-923.81,0.00011369,2]
[353959342,1740167468163,-571.1,0.00011369,2]
[353959343,1740167468173,-615.92,0.00011369,2]
[353959344,1740167468182,-500.0,0.00011369,2]
[353959345,1740167468192,-1145.31,0.00011369,2]
[353959346,1740167468206,-500.0,0.00011369,2]
[353959347,1740167468216,-500.0,0.00011369,2]
[353959348,1740167468225,-524.1,0.00011369,2]
[353959349,1740167468235,-500.0,0.00011369,2]
[353959350,1740167468245,-680.76,0.00011369,2]
[353959351,1740167468254,-799.15,0.00011369,2]
[353959352,1740167468263,-1285.44,0.00011369,2]
[353959353,1740167468272,-1586.6,0.00011369,2]
[353959354,1740167468281,-514.98,0.00011369,2]
[353959355,1740167468290,-626.99,0.00011369,2]
[353959356,1740167468299,-687.0,0.00011369,2]
[353959357,1740167468309,-763.06,0.00011369,2]
[353959358,1740167468318,-500.0,0.00011369,2]
[353959359,1740167468327,-836.24,0.00011369,2]
[353959360,1740167468337,-500.0,0.00011369,2]
[353959361,1740167468346,-741.66,0.00011369,2]
[353959362,1740167468355,-976.83,0.00011369,2]
[353959363,1740167468365,-500.0,0.00011369,2]
[353959364,1740167468374,-153.6800829,0.00011369,2]
[353959365,1740167468383,-500.0,0.00011369,2]
[353959366,1740167468392,-1826.83,0.00011369,2]
[353959367,1740167468402,-1648.87,0.00011369,2]
[353959368,1740167468411,-522.43742761,0.00011369,2]
[353959369,1740167468421,-822.42,0.00011369,2]
[353959370,1740167468430,-500.0,0.00011369,2]
[353959371,1740167468439,-1061.87,0.00011369,2]
[353959372,1740167468452,-1122.92,0.00011369,2]
[353959373,1740167468461,-769.98,0.00011369,2]
[353959374,1740167468471,-818.95,0.00011369,2]
[353959375,1740167468480,-652.38,0.00011369,2]
[353959376,1740167468489,-500.0,0.00011369,2]
[353959377,1740167468498,-569.49,0.00011369,2]
[353959378,1740167468508,-500.0,0.00011369,2]
[353959379,1740167468517,-500.0,0.00011369,2]
[353959380,1740167468527,-778.95,0.00011369,2]
[353959381,1740167468536,-500.0,0.00011369,2]
[353959382,1740167468546,-500.0,0.00011369,2]
[353959383,1740167468555,-1811.38,0.00011369,2]
[353959384,1740167468564,-575.2,0.00011369,2]
[353959385,1740167468574,-982.85,0.00011369,2]
[353959386,1740167468583,-717.22,0.00011369,2]
[353959387,1740167468593,-1375.27,0.00011369,2]
[353959388,1740167468602,-893.56,0.00011369,2]
[353959389,1740167468612,-500.0,0.00011369,2]
[353959390,1740167468621,-500.0,0.00011369,2]
[353959391,1740167468630,-809.42,0.00011369,2]
[353959392,1740167468640,-1319.65,0.00011369,2]
[353959393,1740167468649,-500.0,0.00011369,2]
[353959394,1740167468658,-1036.04,0.00011369,2]
[353959395,1740167468667,-1242.28,0.00011369,2]
[353959396,1740167468677,-617.56,0.00011369,2]
[353959397,1740167468687,-500.0,0.00011369,2]
[353959398,1740167468697,-625.0,0.00011369,2]
[353959399,1740167468707,-948.12,0.00011369,2]
[353959400,1740167468720,-500.0,0.00011369,2]
[353959401,1740167468729,-1022.36,0.00011369,2]
[353959402,1740167468738,-854.65,0.00011369,2]
[353959403,1740167468747,-500.0,0.00011369,2]
[353959404,1740167468758,-500.0,0.00011369,2]
[353959405,1740167468768,-926.96,0.00011369,2]
[353959406,1740167468777,-969.71,0.00011369,2]
[353959407,1740167468787,-500.0,0.00011369,2]
[353959408,1740167468798,-810.4,0.00011369,2]
[353959409,1740167468807,-500.0,0.00011369,2]
[353959410,1740167468816,-615.07,0.00011369,2]
[353959411,1740167468825,-500.0,0.00011369,2]
[353959412,1740167468835,-1192.04,0.00011369,2]
[353959413,1740167468844,-508.53,0.00011369,2]
[353959414,1740167468854,-672.33,0.00011369,2]
[353959415,1740167468863,-1908.9,0.00011369,2]
[353959416,1740167468872,-500.0,0.00011369,2]
[353959417,1740167468882,-1359.44,0.00011369,2]
[353959418,1740167468891,-902.67,0.00011369,2]
[353959419,1740167468900,-1423.88,0.00011369,2]
[353959420,1740167468910,-717.68,0.00011369,2]
[353959421,1740167468919,-427.24030299,0.00011369,2]
[353959422,1740167468928,-1211.55,0.00011369,2]
[353959423,1740167468938,-2188.61,0.00011369,2]
[353959424,1740167468948,-1759.15,0.00011369,2]
[353959425,1740167468958,-697.64,0.00011369,2]
[353959426,1740167468967,-986.02,0.00011369,2]
[353959427,1740167468977,-1662.17,0.00011369,2]
[353959428,1740167468986,-500.0,0.00011369,2]
[353959429,1740167468996,-1297.0,0.00011369,2]
[353959430,1740167469006,-500.0,0.00011369,2]
[353959431,1740167469016,-861.11,0.00011369,2]
[353959432,1740167469026,-925.5,0.00011369,2]
[353959433,1740167469035,-1460.13,0.00011369,2]
[353959434,1740167469045,-596.42,0.00011369,2]
[353959435,1740167469054,-500.0,0.00011369,2]
[353959436,1740167469063,-500.0,0.00011369,2]
[353959437,1740167469072,-500.0,0.00011369,2]
[353959438,1740167469081,-500.0,0.00011369,2]
[353959439,1740167469090,-1381.05,0.00011369,2]
[353959440,1740167469099,-707.75,0.00011369,2]
[353959441,1740167469108,-905.98,0.00011369,2]
[353959442,1740167469117,-511.21,0.00011369,2]
[353959443,1740167469126,-500.0,0.00011369,2]
[353959444,1740167469135,-645.45,0.00011369,2]
[353959445,1740167469145,-600.11,0.00011369,2]
[353959446,1740167469155,-1101.61,0.00011369,2]
[353959447,1740167469164,-1349.02,0.00011369,2]
[353959448,1740167469174,-1210.32,0.00011369,2]
[353959449,1740167469184,-500.0,0.00011369,2]
[353959450,1740167469193,-599.64,0.00011369,2]
[353959451,1740167469206,-500.0,0.00011369,2]
[353959452,1740167469215,-794.86,0.00011369,2]
[353959453,1740167469224,-901.02,0.00011369,2]
[353959454,1740167469233,-500.0,0.00011369,2]
[353959455,1740167469243,-500.0,0.00011369,2]
[353959456,1740167469253,-856.94,0.00011369,2]
[353959457,1740167469261,-964.92,0.00011369,2]
[353959458,1740167469270,-500.0,0.00011369,2]
[353959459,1740167469279,-1325.37,0.00011369,2]
[353959460,1740167469288,-500.0,0.00011369,2]
[353959461,1740167469297,-1325.36,0.00011369,2]
[353959462,1740167469306,-500.0,0.00011369,2]
[353959463,1740167469315,-500.0,0.00011369,2]
[353959464,1740167469324,-500.0,0.00011369,2]
[353959465,1740167469333,-777.44,0.00011369,2]
[353959466,1740167469342,-1387.99,0.00011369,2]
[353959467,1740167469351,-500.0,0.00011369,2]
[353959468,1740167469360,-500.0,0.00011369,2]
[353959469,1740167469369,-500.0,0.00011369,2]
[353959470,1740167469378,-1448.95,0.00011369,2]
[353959471,1740167469387,-500.0,0.00011369,2]
[353959472,1740167469396,-296.79147087,0.00011369,2]
[353959473,1740167469404,-724.59,0.00011369,2]
[353959474,1740167469413,-908.66,0.00011369,2]
[353959475,1740167469422,-857.07,0.00011369,2]
[353959476,1740167469432,-825.21,0.00011369,2]
[353959477,1740167469441,-874.13,0.00011369,2]
[353959478,1740167469451,-500.0,0.00011369,2]
[353959479,1740167469460,-500.0,0.00011369,2]
[353959480,1740167469469,-500.0,0.00011369,2]
[353959481,1740167469478,-1679.67,0.00011369,2]
[353959482,1740167469487,-500.0,0.00011369,2]
[353959483,1740167469497,-500.0,0.00011369,2]
[353959484,1740167469506,-500.0,0.00011369,2]
[353959485,1740167469515,-500.0,0.00011369,2]
[353959486,1740167469524,-1120.09,0.00011369,2]
[353959487,1740167469532,-684.04,0.00011369,2]
[353959488,1740167469541,-500.0,0.00011369,2]
[353959489,1740167469550,-1184.73,0.00011369,2]
[353959490,1740167469560,-934.86,0.00011369,2]
[353959491,1740167469569,-1633.04,0.00011369,2]
[353959492,1740167469579,-2742.63,0.00011369,2]
[353959493,1740167469588,-666.09,0.00011369,2]
[353959494,1740167469597,-814.84,0.00011369,2]
[353959495,1740167469606,-1339.09,0.00011369,2]
[353959496,1740167469616,-500.0,0.00011369,2]
[353959497,1740167469625,-1290.16,0.00011369,2]
[353959498,1740167469635,-600.21,0.00011369,2]
[353959499,1740167469644,-566.0,0.00011369,2]
[353959500,1740167469653,-1207.48,0.00011369,2]
[353959501,1740167469662,-1444.01,0.00011369,2]
[353959502,1740167469675,-500.0,0.00011369,2]
[353959503,1740167469684,-3450.46,0.00011369,2]
[353959504,1740167469694,-1395.85,0.00011369,2]
[353959505,1740167469708,-500.0,0.00011369,2]
[353959506,1740167469717,-1125.15,0.00011369,2]
[353959507,1740167469727,-500.0,0.00011369,2]
[353959508,1740167469736,-500.0,0.00011369,2]
[353959509,1740167469746,-1047.03,0.00011369,2]
[353959510,1740167469755,-537.84,0.00011369,2]
[353959511,1740167469764,-959.73,0.00011369,2]
[353959512,1740167469774,-500.0,0.00011369,2]
[353959513,1740167469784,-500.0,0.00011369,2]
[353959514,1740167469794,-786.56,0.00011369,2]
[353959515,1740167469803,-2785.17,0.00011369,2]
[353959516,1740167469812,-706.89,0.00011369,2]
[353959517,1740167469821,-611.17,0.00011369,2]
[353959518,1740167469830,-500.0,0.00011369,2]
[353959519,1740167469840,-500.0,0.00011369,2]
[353959520,1740167469849,-156.045622,0.00011369,2]
[353959521,1740167469858,-525.67,0.00011369,2]
[353959522,1740167469868,-819.59,0.00011369,2]
[353959523,1740167469877,-1421.65,0.00011369,2]
[353959524,1740167469886,-853.79,0.00011369,2]
[353959525,1740167469895,-1799.84,0.00011369,2]
[353959526,1740167469904,-500.0,0.00011369,2]
[353959527,1740167469914,-500.0,0.00011369,2]
[353959528,1740167469924,-2465.29,0.00011369,2]
[353959529,1740167469933,-3543.95,0.00011369,2]
[353959530,1740167469942,-779.77,0.00011369,2]
[353959531,1740167469953,-382.093165,0.00011369,2]
[353959532,1740167469962,-500.0,0.00011369,2]
[353959533,1740167469971,-500.0,0.00011369,2]
[353959534,1740167469980,-1897.92,0.00011369,2]
[353959535,1740167469989,-2898.71,0.00011369,2]
[353959536,1740167469998,-361.20281301,0.00011369,2]
[353959537,1740167470007,-749.44,0.00011369,2]
[353959538,1740167470015,-1425.64,0.00011369,2]
[353959539,1740167470024,-639.64,0.00011369,2]
[353959540,1740167470034,-1833.48,0.00011369,2]
[353959541,1740167470043,-500.0,0.00011369,2]
[353959542,1740167470051,-1283.58,0.00011369,2]
[353959543,1740167470060,-500.0,0.00011369,2]
[353959544,1740167470069,-500.0,0.00011369,2]
[353959545,1740167470078,-2412.67,0.00011369,2]
[353959546,1740167470088,-1306.89,0.00011369,2]
[353959547,1740167470098,-500.0,0.00011369,2]
[353959548,1740167470107,-500.0,0.00011369,2]
[353959549,1740167470117,-2034.14,0.00011369,2]
[353959550,1740167470126,-500.0,0.00011369,2]
[353959551,1740167470135,-974.92,0.00011369,2]
[353959552,1740167470144,-2076.65,0.00011369,2]
[353959553,1740167470153,-500.0,0.00011369,2]
[353959554,1740167470162,-1574.15,0.00011369,2]
[353959555,1740167470171,-1640.08,0.00011369,2]
[353959556,1740167470181,-500.0,0.00011369,2]
[353959557,1740167470191,-500.0,0.00011369,2]
[353959558,1740167470203,-1453.95,0.00011369,2]
[353959559,1740167470212,-1900.25,0.00011369,2]
[353959560,1740167470222,-1683.88,0.00011369,2]
[353959561,1740167470231,-13118.68,0.00011369,2]
[353959562,1740167470240,-554.2,0.00011369,2]
[353959563,1740167470248,-511.87,0.00011369,2]
[353959564,1740167470258,-2369.7,0.00011369,2]
[353959565,1740167470267,-1211.68,0.00011369,2]
[353959566,1740167470276,-666.84,0.00011369,2]
[353959567,1740167470286,-1282.54,0.00011369,2]
[353959568,1740167470295,-1427.28,0.00011369,2]
[353959569,1740167470304,-1696.55,0.00011369,2]
[353959570,1740167470313,-500.0,0.00011369,2]
[353959571,1740167470322,-867.08,0.00011369,2]
[353959572,1740167470331,-2568.42,0.00011369,2]
[353959573,1740167470340,-1911.79,0.00011369,2]
[353959574,1740167470350,-679.07,0.00011369,2]
[353959575,1740167470359,-621.24,0.00011369,2]
[353959576,1740167470367,-747.95,0.00011369,2]
[353959577,1740167470376,-1137.83,0.00011369,2]
[353959578,1740167470386,-2035.76,0.00011369,2]
[353959579,1740167470395,-500.0,0.00011369,2]
[353959580,1740167470404,-1256.62,0.00011369,2]
[353959581,1740167470413,-500.0,0.00011369,2]
[353959582,1740167470423,-718.0,0.00011369,2]
[353959583,1740167470432,-500.0,0.00011369,2]
[353959584,1740167470441,-901.59,0.00011369,2]
[353959585,1740167470455,-2040.15,0.00011369,2]
[353959586,1740167470464,-1477.74,0.00011369,2]
[353959587,1740167470474,-500.0,0.00011369,2]
[353959588,1740167470483,-534.7882047,0.00011369,2]
[353959589,1740167470492,-757.34,0.00011369,2]
[353959590,1740167470501,-2164.87,0.00011369,2]
[353959591,1740167470511,-1659.4,0.00011369,2]
[353959592,1740167470520,-1859.7,0.00011369,2]
[353959593,1740167470530,-2453.21,0.00011369,2]
[353959594,1740167470539,-561.26,0.00011369,2]
[353959595,1740167470549,-1850.75,0.00011369,2]
[353959596,1740167470559,-500.0,0.00011369,2]
[353959597,1740167470568,-500.0,0.00011369,2]
[353959598,1740167470578,-500.0,0.00011369,2]
[353959599,1740167470587,-601.04,0.00011369,2]
[353959600,1740167470596,-822.39,0.00011369,2]
[353959601,1740167470606,-734.9,0.00011369,2]
[353959602,1740167470615,-4625.02,0.00011369,2]
[353959603,1740167470625,-500.0,0.00011369,2]
[353959604,1740167470634,-1777.87,0.00011369,2]
[353959605,1740167470644,-1540.98,0.00011369,2]
[353959606,1740167470653,-546.46,0.00011369,2]
[353959607,1740167470663,-500.0,0.00011369,2]
[353959608,1740167470672,-500.0,0.00011369,2]
[353959609,1740167470682,-500.0,0.00011369,2]
[353959610,1740167470692,-500.0,0.00011369,2]
[353959611,1740167470706,-1630.09,0.00011369,2]
[353959612,1740167470718,-500.0,0.00011369,2]
[353959613,1740167470728,-899.67,0.00011369,2]
[353959614,1740167470738,-1542.1,0.00011369,2]
[353959615,1740167470747,-547.15,0.00011369,2]
[353959616,1740167470757,-500.0,0.00011369,2]
[353959617,1740167470766,-2224.84,0.00011369,2]
[353959618,1740167470776,-943.17,0.00011369,2]
[353959619,1740167470786,-500.0,0.00011369,2]
[353959620,1740167470796,-807.22,0.00011369,2]
[353959621,1740167470806,-1405.51,0.00011369,2]
[353959622,1740167470815,-1451.47,0.00011369,2]
[353959623,1740167470825,-773.56,0.00011369,2]
[353959624,1740167470838,-863.09,0.00011369,2]
[353959625,1740167470847,-1030.82,0.00011369,2]
[353959626,1740167470856,-1414.2,0.00011369,2]
[353959627,1740167470866,-2629.27,0.00011369,2]
[353959628,1740167470876,-500.0,0.00011369,2]
[353959629,1740167470885,-1956.95,0.00011369,2]
[353959630,1740167470895,-933.0,0.00011369,2]
[353959631,1740167470904,-591.21,0.00011369,2]
[353959632,1740167470914,-572.93,0.00011369,2]
[353959633,1740167470923,-500.0,0.00011369,2]
[353959634,1740167470933,-500.0,0.00011369,2]
[353959635,1740167470943,-500.0,0.00011369,2]
[353959636,1740167470955,-1071.61,0.00011369,2]
[353959637,1740167470964,-1979.81,0.00011369,2]
[353959638,1740167470974,-2806.52,0.00011369,2]
[353959639,1740167470985,-500.0,0.00011369,2]
[353959640,1740167470998,-1063.77,0.00011369,2]
[353959641,1740167471008,-500.0,0.00011369,2]
[353959642,1740167471018,-511.32,0.00011369,2]
[353959643,1740167471027,-1836.76,0.00011369,2]
[353959644,1740167471036,-500.0,0.00011369,2]
[353959645,1740167471046,-523.07,0.00011369,2]
[353959646,1740167471056,-500.0,0.00011369,2]
[353959647,1740167471065,-1918.18,0.00011369,2]
[353959648,1740167471075,-500.0,0.00011369,2]
[353959649,1740167471084,-1627.61,0.00011369,2]
[353959650,1740167471094,-500.0,0.00011369,2]
[353959651,1740167471104,-546.11,0.00011369,2]
[353959652,1740167471113,-645.43,0.00011369,2]
[353959653,1740167471123,-1484.14,0.00011369,2]
[353959654,1740167471134,-500.0,0.00011369,2]
[353959655,1740167471144,-2455.95,0.00011369,2]
[353959656,1740167471155,-500.0,0.00011369,2]
[353959657,1740167471165,-667.63,0.00011369,2]
[353959658,1740167471176,-624.12,0.00011369,2]
[353959659,1740167471186,-2372.7,0.00011369,2]
[353959660,1740167471196,-626.59,0.00011369,2]
[353959661,1740167471208,-908.08,0.00011369,2]
[353959662,1740167471218,-263.55085436,0.00011369,2]
[353959663,1740167471228,-500.0,0.00011369,2]
[353959664,1740167471237,-500.0,0.00011369,2]
[353959665,1740167471247,-911.32,0.00011369,2]
[353959666,1740167471256,-5546.19,0.00011369,2]
[353959667,1740167471267,-1353.06,0.00011369,2]
[353959668,1740167471277,-500.0,0.00011369,2]
[353959669,1740167471286,-1549.06,0.00011369,2]
[353959670,1740167471296,-1073.32,0.00011369,2]
[353959671,1740167471305,-1586.49,0.00011369,2]
[353959672,1740167471315,-4218.35,0.00011369,2]
[353959673,1740167471324,-1546.99,0.00011369,2]
[353959674,1740167471334,-560.32,0.00011369,2]
[353959675,1740167471343,-1702.81,0.00011369,2]
[353959676,1740167471353,-500.0,0.00011369,2]
[353959677,1740167471362,-500.0,0.00011369,2]
[353959678,1740167471372,-500.0,0.00011369,2]
[353959679,1740167471381,-1764.24,0.00011369,2]
[353959680,1740167471390,-735.06,0.00011369,2]
[353959681,1740167471400,-1149.42,0.00011369,2]
[353959682,1740167471409,-1183.25,0.00011369,2]
[353959683,1740167471419,-500.0,0.00011369,2]
[353959684,1740167471429,-636.23,0.00011369,2]
[353959685,1740167471438,-500.0,0.00011369,2]
[353959686,1740167471448,-500.0,0.00011369,2]
[353959687,1740167471459,-601.47,0.00011369,2]
[353959688,1740167471468,-500.0,0.00011369,2]
[353959689,1740167471479,-500.0,0.00011369,2]
[353959690,1740167471489,-500.0,0.00011369,2]
[353959691,1740167471498,-2271.32,0.00011369,2]
[353959692,1740167471507,-500.0,0.00011369,2]
[353959693,1740167471517,-541.45,0.00011369,2]
[353959694,1740167471526,-876.43,0.00011369,2]
[353959695,1740167471536,-2152.05,0.00011369,2]
[353959696,1740167471546,-916.64,0.00011369,2]
[353959697,1740167471556,-1511.65,0.00011369,2]
[353959698,1740167471566,-553.9,0.00011369,2]
[353959699,1740167471575,-500.0,0.00011369,2]
[353959700,1740167471585,-500.0,0.00011369,2]
[353959701,1740167471595,-3165.99,0.00011369,2]
[353959702,1740167471605,-805.35,0.00011369,2]
[353959703,1740167471614,-714.44,0.00011369,2]
[353959704,1740167471624,-500.0,0.00011369,2]
[353959705,1740167471633,-517.12,0.00011369,2]
[353959706,1740167471642,-2840.89,0.00011369,2]
[353959707,1740167471652,-500.0,0.00011369,2]
[353959708,1740167471663,-2330.01,0.00011369,2]
[353959709,1740167471675,-1123.03,0.00011369,2]
[353959710,1740167471687,-1483.29,0.00011369,2]
[353959711,1740167471697,-706.1,0.00011369,2]
[353959712,1740167471713,-500.0,0.00011369,2]
[353959713,1740167471723,-500.0,0.00011369,2]
[353959714,1740167471732,-500.0,0.00011369,2]
[353959715,1740167471743,-500.0,0.00011369,2]
[353959716,1740167471753,-1141.98,0.00011369,2]
[353959717,1740167471762,-762.79,0.00011369,2]
[353959718,1740167471772,-1041.84,0.00011369,2]
[353959719,1740167471782,-1531.08,0.00011369,2]
[353959720,1740167471794,-1281.67,0.00011369,2]
[353959721,1740167471804,-555.85,0.00011369,2]
[353959722,1740167471814,-521.28,0.00011369,2]
[353959723,1740167471823,-1097.81,0.00011369,2]
[353959724,1740167471834,-1217.74,0.00011369,2]
[353959725,1740167471844,-347.50243211,0.00011369,2]
[353959726,1740167471854,-271.96184543,0.00011434,2]
[353959727,1740167471864,-183.21271491,0.00011434,2]
[353959728,1740167471874,-267.82201054,0.00011437,2]
[353959729,1740167471884,-653.29,0.0001145,2]
[353959730,1740167471894,-500.0,0.0001145,2]
[353959731,1740167471904,-500.0,0.0001145,2]
[353959732,1740167471914,-500.0,0.00011451,2]
[353959733,1740167471923,-575.69,0.00011451,2]
[353959734,1740167471934,-500.0,0.00011451,2]
[353959735,1740167471944,-500.0,0.00011451,2]
[353959736,1740167471956,-817.79,0.00011451,2]
[353959737,1740167471966,-151.0,0.00011451,2]
[353959738,1740167471981,-500.0,0.00011451,2]
[353959739,1740167471995,-791.84,0.00011451,2]
[353959740,1740167472007,-500.0,0.00011451,2]
[353959741,1740167472017,-500.0,0.00011451,2]
[353959742,1740167472027,-757.52,0.00011451,2]
[353959743,1740167472037,-500.0,0.00011451,2]
[353959744,1740167472047,-500.0,0.00011451,2]
[353959745,1740167472057,-500.0,0.00011451,2]
[353959746,1740167472066,-700.04,0.00011451,2]
[353959747,1740167472076,-500.0,0.00011451,2]
[353959748,1740167472086,-1283.58,0.00011451,2]
[353959749,1740167472096,-1574.15,0.00011451,2]
[353959750,1740167472105,-1900.25,0.00011451,2]
[353959751,1740167472115,-1427.28,0.00011451,2]
[353959752,1740167472124,-1911.79,0.00011451,2]
[353959753,1740167472133,-500.0,0.00011451,2]
[353959754,1740167472143,-500.0,0.00011451,2]
[353959755,1740167472153,-1859.7,0.00011451,2]
[353959756,1740167472164,-1540.98,0.00011451,2]
[353959757,1740167472175,-403.53970553,0.00011451,2]
[353959758,1740167472186,-933.0,0.00011451,2]
[353959759,1740167472196,-2806.52,0.00011451,2]
[353959760,1740167472209,-500.0,0.00011451,2]
[353959761,1740167472219,-500.0,0.00011452,2]
[353959762,1740167472228,-500.0,0.00011452,2]
[353959763,1740167472238,-500.0,0.00011452,2]
[353959764,1740167472247,-681.16,0.00011452,2]
[353959765,1740167472257,-500.0,0.00011452,2]
[353959766,1740167472266,-723.6,0.00011452,2]
[353959767,1740167472276,-1031.25,0.00011452,2]
[353959768,1740167472285,-687.99,0.00011452,2]
[353959769,1740167472295,-500.0,0.00011452,2]
[353959770,1740167472304,-500.0,0.00011452,2]
[353959771,1740167472314,-575.68455911,0.00011452,2]
[353959772,1740167472324,-643.32,0.00011452,2]
[353959773,1740167472334,-758.78,0.00011452,2]
[353959774,1740167472344,-582.11,0.00011452,2]
[353959775,1740167472353,-500.0,0.00011452,2]